bitfinex/quotes_BTCUSD_20230831
["timestamp","ask_amount","ask_price","bid_price","bid_amount"]
[1693498787953,0.47602433,26863.0,26858.0,0.58411319]
[1693498788156,0.186074,26863.0,26859.0,0.21439234]
[1693498788356,0.2329,26867.0,26860.0,0.36768085]
[1693498788559,0.2329,26867.0,26861.0,0.14707234]
[1693498788789,0.037,26863.0,26862.0,0.36768085]
[1693498789327,0.037,26863.0,26862.0,0.37338933]
[1693498789525,0.037,26863.0,26862.0,0.36768085]
[1693498789814,0.24165066,26867.0,26858.0,0.09904]
[1693498789815,0.3916,26867.0,26858.0,0.09904]
[1693498789993,0.3916,26867.0,26850.0,0.32236]
[1693498789994,0.6135372,26863.0,26850.0,0.04]
[1693498790218,0.6505372,26863.0,26862.0,0.003]
[1693498790435,0.0359372,26862.0,26853.0,0.08772]
[1693498790553,0.18207876,26861.0,26854.0,0.36768085]
[1693498790763,0.7275372,26860.0,26854.0,0.36768085]
[1693498790952,0.02,26859.0,26854.0,0.36768085]
[1693498791158,0.02,26859.0,26854.0,0.51475319]
[1693498791360,0.3,26860.0,26855.0,0.09564]
[1693498791568,0.3,26860.0,26851.0,0.15438]
[1693498791569,0.36768085,26859.0,26851.0,0.15438]
[1693498791769,0.36768085,26859.0,26844.0,0.021105]
[1693498791770,0.08,26852.0,26844.0,0.021105]
[1693498791977,0.08,26852.0,26836.0,0.02]
[1693498791978,0.36768085,26851.0,26837.0,0.02]
[1693498792187,0.36768085,26851.0,26836.0,0.12]
[1693498792188,0.3916,26847.0,26840.0,0.36768085]
[1693498792409,0.38768085,26851.0,26840.0,0.36768085]
[1693498792410,0.34807876,26845.0,26840.0,0.36768085]
[1693498792628,0.32,26844.0,26840.0,0.36768085]
[1693498792863,0.54457112,26844.0,26840.0,0.36768085]
[1693498793076,1.07438842,26843.0,26840.0,0.36768085]
[1693498793484,1.25219807,26842.0,26840.0,0.36768085]
[1693498793708,1.25219807,26841.0,26840.0,0.36768085]
[1693498793913,1.25219807,26841.0,26840.0,0.44016085]
[1693498794151,0.22457112,26844.0,26840.0,0.44179407]
[1693498794356,1.07438842,26843.0,26840.0,0.44179407]
[1693498794554,1.07438842,26843.0,26840.0,0.44279407]
[1693498794759,0.036,26842.0,26840.0,0.36868085]
[1693498794955,1.07438842,26841.0,26840.0,0.45370578]
[1693498795157,1.07438842,26841.0,26840.0,0.45270578]
[1693498795458,0.02306003,26841.0,26840.0,0.45370578]
[1693498795635,1.09744845,26841.0,26840.0,0.45370578]
[1693498795839,0.17780965,26841.0,26840.0,0.45370578]
[1693498796045,1.07438842,26841.0,26840.0,0.45370578]
[1693498796441,0.036,26843.0,26840.0,0.45370578]
[1693498796597,1.07438842,26842.0,26840.0,0.36868085]
[1693498796799,0.036,26841.0,26840.0,0.36868085]
[1693498797040,1.11038842,26841.0,26839.0,0.020705]
[1693498797332,1.25219807,26840.0,26839.0,0.020705]
[1693498797459,0.02,26840.0,26839.0,0.020705]
[1693498797874,1.09438842,26840.0,26839.0,0.020705]
[1693498798718,1.09438842,26840.0,26833.0,0.06438]
[1693498798719,2.03966927,26840.0,26833.0,0.06438]
[1693498798940,2.03966927,26840.0,26832.0,0.020705]
[1693498798941,0.55367876,26837.0,26832.0,0.020705]
[1693498799178,1.07438842,26836.0,26832.0,0.020705]
[1693498799407,0.02,26835.0,26832.0,0.020705]
[1693498799612,1.07438842,26834.0,26832.0,0.020705]
[1693498799824,1.25219807,26833.0,26832.0,0.38838585]
[1693498800028,0.17780965,26833.0,26832.0,0.38838585]
[1693498800271,1.07438842,26833.0,26832.0,0.38838585]
[1693498800503,1.25219807,26833.0,26832.0,0.38838585]
[1693498800708,0.17780965,26833.0,26832.0,0.38838585]
[1693498800912,1.07438842,26833.0,26832.0,0.38838585]
[1693498801113,0.036,26833.0,26832.0,0.38838585]
[1693498801310,1.11038842,26833.0,26832.0,0.38838585]
[1693498801515,1.28819807,26833.0,26832.0,0.020705]
[1693498801726,1.11038842,26833.0,26832.0,0.020705]
[1693498802588,1.14638842,26833.0,26832.0,0.020705]
[1693498803012,1.32405399,26833.0,26832.0,0.020705]
[1693498803226,1.14638842,26833.0,26832.0,0.61937816]
[1693498803461,1.14638842,26833.0,26832.0,0.88555816]
[1693498803462,1.1098049,26833.0,26832.0,0.88555816]
[1693498803689,0.9894317,26833.0,26832.0,0.89466582]
[1693498803920,0.9894317,26833.0,26832.0,0.74358582]
[1693498804154,0.9894317,26833.0,26832.0,0.51762585]
[1693498804387,1.21868386,26833.0,26832.0,0.39138585]
[1693498804597,1.23677306,26833.0,26832.0,0.39138585]
[1693498804828,1.19977306,26833.0,26832.0,0.38838585]
[1693498805275,1.21868386,26833.0,26832.0,0.39138585]
[1693498805510,0.9904317,26833.0,26832.0,0.47400585]
[1693498805746,1.04446709,26833.0,26832.0,0.56706819]
[1693498805952,0.03015802,26842.0,26835.0,0.04]
[1693498806153,0.03015802,26842.0,26836.0,0.51475319]
[1693498806355,0.10635325,26843.0,26836.0,0.51475319]
[1693498806564,0.10635325,26843.0,26837.0,0.44868085]
[1693498806769,0.10635325,26843.0,26838.0,0.14707234]
[1693498806970,0.10635325,26843.0,26839.0,0.36768085]
[1693498806971,0.13669051,26843.0,26839.0,0.36768085]
[1693498807399,0.20408346,26842.0,26839.0,0.36768085]
[1693498808000,0.35327246,26842.0,26839.0,0.36768085]
[1693498808654,0.39027246,26842.0,26839.0,0.37068085]
[1693498809800,0.186189,26842.0,26839.0,0.37068085]
[1693498810001,0.18876891,26841.0,26839.0,0.36768085]
[1693498810115,0.18876891,26841.0,26839.0,0.37068085]
[1693498810319,0.18876891,26841.0,26839.0,0.37368085]
[1693498810742,0.18876891,26841.0,26839.0,0.37068085]
[1693498811113,0.22576891,26841.0,26839.0,0.37068085]
[1693498811241,0.22576891,26841.0,26833.0,0.12816]
[1693498811242,0.02,26840.0,26832.0,0.020705]
[1693498811453,0.74467876,26840.0,26833.0,0.36768085]
[1693498811662,0.73967876,26840.0,26833.0,0.36768085]
[1693498811871,0.6916,26839.0,26833.0,0.36768085]
[1693498812270,0.34807876,26837.0,26832.0,0.020705]
[1693498812462,0.34807876,26837.0,26832.0,0.38838585]
[1693498813102,0.3916,26835.0,26832.0,0.020705]
[1693498813320,0.3,26834.0,26829.0,0.020806]
[1693498813508,0.64807876,26834.0,26832.0,0.003]
[1693498813987,0.64807876,26834.0,26832.0,0.36768085]
[1693498814620,0.64807876,26834.0,26832.0,0.37068085]
[1693498815046,0.24467566,26833.0,26832.0,0.37068085]
[1693498815246,0.54467566,26833.0,26832.0,0.37068085]
[1693498816343,0.036,26834.0,26833.0,0.08379272]
[1693498816560,0.036,26834.0,26833.0,0.59854591]
[1693498816561,0.073,26834.0,26833.0,0.59854591]
[1693498816769,0.037,26834.0,26833.0,0.57045357]
[1693498816975,0.03033726,26843.0,26833.0,0.56001357]
[1693498817190,0.03033726,26843.0,26834.0,0.51475319]
[1693498817393,0.49727376,26843.0,26834.0,0.61147319]
[1693498817600,0.49727376,26843.0,26834.0,0.61231319]
[1693498817812,0.3,26842.0,26835.0,0.17432948]
[1693498818030,0.3,26842.0,26836.0,0.51475319]
[1693498818229,0.3,26842.0,26836.0,0.58375319]
[1693498818440,0.3,26842.0,26836.0,0.59011319]
[1693498818644,0.50941372,26842.0,26837.0,0.0663]
[1693498818822,0.50941372,26842.0,26838.0,0.36768085]
[1693498818823,0.3,26842.0,26838.0,0.36768085]
[1693498819546,0.47409926,26842.0,26838.0,0.36768085]
[1693498819790,0.16207876,26840.0,26834.0,0.06426]
[1693498820003,0.3916,26839.0,26835.0,0.003]
[1693498820208,0.16207876,26837.0,26835.0,0.003]
[1693498820411,0.16207876,26837.0,26831.0,0.0681]
[1693498820635,0.3,26836.0,26832.0,0.36768085]
[1693498821082,0.6916,26836.0,26829.0,0.020806]
[1693498821292,0.02,26835.0,26829.0,0.38848685]
[1693498821702,0.3,26836.0,26830.0,0.36768085]
[1693498821917,0.3,26836.0,26830.0,0.51475319]
[1693498823231,0.373,26836.0,26832.0,0.003]
[1693498823435,0.17299534,26835.0,26833.0,0.36768085]
[1693498823647,0.3,26834.0,26833.0,0.36768085]
[1693498823857,0.3,26836.0,26833.0,0.51475319]
[1693498823858,0.036,26836.0,26833.0,0.51475319]
[1693498824066,0.036,26836.0,26834.0,0.62892085]
[1693498824271,0.036,26836.0,26834.0,0.48174085]
[1693498824506,0.18547674,26835.0,26834.0,0.36768085]
[1693498824713,0.18547674,26835.0,26834.0,0.36268085]
[1693498824943,0.037,26836.0,26835.0,0.08172]
[1693498825148,0.037,26836.0,26835.0,0.36768085]
[1693498825360,0.037,26836.0,26835.0,0.45216085]
[1693498825569,0.037,26836.0,26835.0,0.45120085]
[1693498825795,0.21220219,26836.0,26835.0,0.45090085]
[1693498826007,0.17520219,26836.0,26835.0,0.36768085]
[1693498826235,0.17520219,26836.0,26835.0,0.44634085]
[1693498826236,0.21220219,26836.0,26835.0,0.44634085]
[1693498826446,0.19720219,26836.0,26835.0,0.44826085]
[1693498826654,0.19720219,26836.0,26835.0,0.44694085]
[1693498826860,0.16020219,26836.0,26835.0,0.44616085]
[1693498827078,0.19620219,26836.0,26835.0,0.37168085]
[1693498827294,0.072,26836.0,26835.0,0.37168085]
[1693498827514,0.072,26836.0,26835.0,0.004]
[1693498828147,0.22396791,26835.0,26829.0,0.088486]
[1693498828356,0.072,26836.0,26830.0,0.36768085]
[1693498828564,0.067,26836.0,26830.0,0.36768085]
[1693498829198,0.336,26836.0,26830.0,0.36768085]
[1693498829411,0.21814066,26835.0,26831.0,0.28681557]
[1693498829648,0.21814066,26835.0,26832.0,0.36768085]
[1693498829870,0.25314066,26835.0,26832.0,0.62064085]
[1693498830090,0.32971017,26841.0,26833.0,0.12198]
[1693498830308,0.32971017,26841.0,26834.0,0.51475319]
[1693498830309,0.036,26836.0,26834.0,0.51475319]
[1693498830521,0.036,26836.0,26835.0,0.11088271]
[1693498830721,0.072,26836.0,26835.0,0.47856356]
[1693498830982,0.036,26836.0,26835.0,0.46320085]
[1693498831195,0.02971017,26841.0,26835.0,0.36768085]
[1693498831408,0.02971017,26841.0,26836.0,0.51475319]
[1693498831618,2.0,26841.0,26836.0,0.51475319]
[1693498831819,0.16207876,26840.0,26836.0,0.51475319]
[1693498832025,0.16207876,26840.0,26836.0,0.36768085]
[1693498832685,0.19706625,26835.0,26832.0,0.0744]
[1693498832891,0.19706625,26835.0,26833.0,0.36768085]
[1693498834215,0.23206625,26835.0,26833.0,0.43854085]
[1693498834416,0.23206625,26835.0,26833.0,0.36768085]
[1693498834863,0.23206625,26835.0,26834.0,0.08394]
[1693498835060,0.23206625,26835.0,26834.0,0.44022085]
[1693498835276,0.23206625,26835.0,26834.0,0.44010085]
[1693498835478,0.23206625,26835.0,26834.0,0.36768085]
[1693498835684,0.23306625,26835.0,26834.0,0.36768085]
[1693498835885,0.26806625,26835.0,26834.0,0.36768085]
[1693498836298,0.23306625,26835.0,26834.0,0.36768085]
[1693498836711,0.23206625,26835.0,26834.0,0.36768085]
[1693498836916,0.26806625,26835.0,26834.0,0.37168085]
[1693498837356,0.25055116,26839.0,26834.0,0.55592128]
[1693498837562,0.17500155,26850.0,26844.0,0.02]
[1693498837773,0.17500155,26850.0,26838.0,0.40768085]
[1693498837774,0.08719231,26851.0,26849.0,0.36768085]
[1693498837988,0.08719231,26857.0,26850.0,0.53475319]
[1693498838191,0.39236542,26859.0,26850.0,0.53475319]
[1693498838192,0.08719231,26859.0,26850.0,0.79719319]
[1693498838401,0.45919231,26859.0,26851.0,0.20766508]
[1693498838672,0.20096208,26858.0,26852.0,0.51475319]
[1693498838881,0.20096208,26858.0,26852.0,0.62065319]
[1693498839093,0.52111,26859.0,26857.0,0.36768085]
[1693498839094,0.14911,26859.0,26857.0,0.36768085]
[1693498839297,0.19498463,26863.0,26858.0,0.51475319]
[1693498839298,0.0206,26863.0,26858.0,0.51475319]
[1693498839505,0.0206,26863.0,26858.0,0.61717319]
[1693498839711,0.0206,26863.0,26859.0,0.09072]
[1693498839937,0.0206,26863.0,26860.0,0.51475319]
[1693498840380,0.0206,26863.0,26860.0,0.62731319]
[1693498840601,0.0576,26863.0,26861.0,0.094]
[1693498840824,0.035,26863.0,26862.0,0.36768085]
[1693498841051,0.035,26863.0,26862.0,0.47442085]
[1693498841253,0.0206,26867.0,26866.0,0.02]
[1693498841463,0.20807667,26867.0,26866.0,0.53475319]
[1693498841669,0.20807667,26867.0,26866.0,0.38768085]
[1693498841874,0.20807667,26867.0,26866.0,0.48512085]
[1693498841875,0.0206,26867.0,26866.0,0.48512085]
[1693498842074,0.0206,26867.0,26866.0,0.48878085]
[1693498842075,0.06162532,26867.0,26866.0,0.48878085]
[1693498842285,0.06162532,26867.0,26866.0,0.48722085]
[1693498842501,0.21714407,26867.0,26866.0,0.48560085]
[1693498842705,0.0204,26867.0,26866.0,0.44982085]
[1693498842908,0.0524,26867.0,26866.0,0.48280085]
[1693498843153,0.0524,26867.0,26866.0,0.46478085]
[1693498843363,0.0204,26867.0,26866.0,0.36968085]
[1693498843602,0.0394,26867.0,26866.0,0.37068085]
[1693498843793,0.0394,26867.0,26866.0,0.47471486]
[1693498843794,0.09214617,26867.0,26866.0,0.47471486]
[1693498845005,0.09214617,26867.0,26866.0,0.53855486]
[1693498845261,0.09214617,26867.0,26866.0,0.55769688]
[1693498845470,0.09214617,26867.0,26866.0,0.37068085]
[1693498845884,0.09214617,26867.0,26862.0,0.06786]
[1693498845885,0.78414617,26867.0,26862.0,0.06786]
[1693498846103,0.1,26866.0,26856.0,0.08616]
[1693498846340,0.1,26866.0,26855.0,0.38768085]
[1693498846341,0.8275372,26866.0,26857.0,0.36768085]
[1693498846548,0.372,26863.0,26857.0,0.36768085]
[1693498846960,0.372,26863.0,26858.0,0.07566]
[1693498847167,0.186,26863.0,26862.0,0.003]
[1693498847372,0.486,26863.0,26862.0,0.003]
[1693498847989,0.523,26863.0,26862.0,0.003]
[1693498848630,0.68617289,26863.0,26862.0,0.003]
[1693498848852,0.68617289,26863.0,26859.0,0.36768085]
[1693498849288,0.516,26863.0,26859.0,0.51475319]
[1693498849510,0.03,26863.0,26862.0,0.08946312]
[1693498849715,0.037,26863.0,26862.0,0.46014397]
[1693498849921,0.037,26863.0,26862.0,0.57108397]
[1693498850127,0.064,26863.0,26862.0,0.57240397]
[1693498850362,0.027,26863.0,26862.0,0.56922397]
[1693498850589,0.3,26866.0,26862.0,0.56508397]
[1693498850795,0.037,26863.0,26860.0,0.09156]
[1693498851000,0.027,26863.0,26862.0,0.003]
[1693498851207,0.027,26863.0,26862.0,0.1112603]
[1693498851442,0.027,26863.0,26862.0,0.1962803]
[1693498851443,0.064,26863.0,26862.0,0.1962803]
[1693498851622,0.064,26863.0,26862.0,0.2005403]
[1693498851842,0.064,26863.0,26862.0,0.46374085]
[1693498852050,0.064,26863.0,26862.0,0.67968085]
[1693498852259,0.059,26863.0,26862.0,0.75768169]
[1693498852466,0.037,26863.0,26862.0,0.75564169]
[1693498852674,0.02,26866.0,26862.0,0.75996169]
[1693498852879,0.02,26866.0,26863.0,0.36768085]
[1693498853085,0.057,26866.0,26863.0,0.36768085]
[1693498853290,0.05298606,26865.0,26863.0,0.47886085]
[1693498853496,0.05298606,26865.0,26863.0,0.36768085]
[1693498853711,0.2094418,26863.0,26862.0,0.002]
[1693498853917,0.2094418,26863.0,26862.0,0.36768085]
[1693498854168,0.2054418,26863.0,26862.0,0.36768085]
[1693498854588,0.486,26863.0,26852.0,0.1361]
[1693498854799,0.3,26862.0,26856.0,0.0708]
[1693498855005,0.3359372,26862.0,26857.0,0.36768085]
[1693498855238,0.3,26862.0,26857.0,0.45330085]
[1693498855444,0.3,26862.0,26858.0,0.10914]
[1693498855663,0.3,26862.0,26859.0,0.36768085]
[1693498855868,0.05288118,26861.0,26859.0,0.46200085]
[1693498856074,0.05288118,26861.0,26860.0,0.08406]
[1693498856280,0.05288118,26861.0,26860.0,0.46806085]
[1693498856486,0.05288118,26861.0,26860.0,0.46722085]
[1693498856697,0.05288118,26861.0,26860.0,0.47034085]
[1693498856919,0.22954494,26861.0,26860.0,0.46254085]
[1693498857127,0.25054494,26861.0,26860.0,0.46596085]
[1693498857334,0.25054494,26861.0,26860.0,0.45180085]
[1693498857542,0.11088118,26861.0,26860.0,0.37068085]
[1693498857785,0.05288118,26861.0,26860.0,0.36768085]
[1693498858214,0.08988118,26861.0,26860.0,0.37068085]
[1693498858626,0.04988118,26861.0,26860.0,0.37068085]
[1693498858848,0.31836156,26861.0,26860.0,0.003]
[1693498859054,0.08704999,26861.0,26860.0,0.003]
[1693498859233,0.10804999,26861.0,26860.0,0.006]
[1693498859474,0.07104999,26861.0,26860.0,0.003]
[1693498859683,0.07104999,26861.0,26856.0,0.09438]
[1693498859684,0.23441315,26861.0,26856.0,0.09438]
[1693498859911,0.27141315,26861.0,26860.0,0.003]
[1693498860123,0.29241315,26861.0,26860.0,0.006]
[1693498860347,0.29241315,26861.0,26860.0,0.003]
[1693498860348,0.25541315,26861.0,26860.0,0.003]
[1693498860552,0.25541315,26861.0,26858.0,0.09084]
[1693498860553,0.05004999,26861.0,26858.0,0.09198]
[1693498860764,0.23144571,26861.0,26859.0,0.36768085]
[1693498860972,0.28944571,26861.0,26860.0,0.003]
[1693498861185,0.10804999,26861.0,26860.0,0.45639777]
[1693498861398,0.10304999,26861.0,26860.0,0.90220555]
[1693498861644,0.10304999,26861.0,26860.0,0.68996085]
[1693498861847,0.10304999,26861.0,26860.0,0.68444085]
[1693498861848,0.28763898,26861.0,26860.0,0.68444085]
[1693498862053,0.28763898,26861.0,26860.0,0.68600085]
[1693498862257,0.26663898,26861.0,26860.0,0.68888085]
[1693498862460,0.26663898,26861.0,26860.0,0.69632085]
[1693498862461,0.08204999,26861.0,26860.0,0.69632085]
[1693498862673,0.08204999,26861.0,26860.0,0.84498502]
[1693498862889,0.04504999,26861.0,26860.0,0.87030502]
[1693498863093,0.019,26861.0,26860.0,0.84786502]
[1693498863317,0.26651409,26861.0,26860.0,0.67724085]
[1693498863524,0.21051409,26861.0,26860.0,0.50156085]
[1693498863730,0.21051409,26861.0,26860.0,0.47840085]
[1693498863941,0.04969816,26861.0,26860.0,0.50288085]
[1693498864172,0.04969816,26861.0,26860.0,0.78294198]
[1693498864388,0.04969816,26861.0,26860.0,0.78354198]
[1693498864598,0.018,26861.0,26860.0,0.78898198]
[1693498864803,0.2572,26867.0,26860.0,0.76414198]
[1693498865012,0.2572,26867.0,26861.0,0.51475319]
[1693498865445,0.2572,26867.0,26862.0,0.1179]
[1693498865626,0.406253,26867.0,26863.0,0.51475319]
[1693498866089,0.0204,26867.0,26865.0,0.36768085]
[1693498866308,0.0204,26867.0,26866.0,0.36768085]
[1693498866524,0.0384,26867.0,26866.0,0.36768085]
[1693498866735,0.0384,26867.0,26866.0,1.02255163]
[1693498866944,0.0754,26867.0,26866.0,0.81345163]
[1693498867176,0.0204,26867.0,26866.0,0.77049163]
[1693498867382,0.09133316,26867.0,26866.0,0.65628085]
[1693498867595,0.10933316,26867.0,26866.0,0.67876085]
[1693498867808,0.10933316,26867.0,26866.0,0.68164085]
[1693498868025,0.09133316,26867.0,26866.0,0.69588085]
[1693498868213,0.09633316,26867.0,26866.0,0.70548085]
[1693498868438,0.09633316,26867.0,26866.0,0.69396085]
[1693498868619,0.09633316,26867.0,26866.0,0.69924085]
[1693498868774,0.09633316,26867.0,26866.0,0.69264085]
[1693498868980,0.31644043,26867.0,26866.0,0.68160085]
[1693498869201,0.29844043,26867.0,26866.0,0.68436085]
[1693498869439,0.29844043,26867.0,26866.0,0.68124085]
[1693498869440,0.31044043,26867.0,26866.0,0.68124085]
[1693498869646,0.0206,26868.0,26867.0,0.16]
[1693498869849,0.2355,26878.0,26867.0,0.16]
[1693498869850,0.01122053,26880.0,26871.0,0.02]
[1693498870019,0.01122053,26880.0,26874.0,0.36768085]
[1693498870020,0.2355,26880.0,26874.0,0.36768085]
[1693498870414,0.02,26883.0,26875.0,0.23533234]
[1693498870415,0.05062281,26879.0,26875.0,0.23533234]
[1693498870667,0.05062281,26879.0,26876.0,0.36768085]
[1693498870668,0.04914839,26878.0,26876.0,0.36768085]
[1693498870880,0.04914839,26878.0,26876.0,0.51475319]
[1693498871092,0.04914839,26878.0,26876.0,0.43974085]
[1693498871310,0.04914839,26878.0,26877.0,0.07566]
[1693498871516,0.04914839,26878.0,26877.0,0.44112085]
[1693498871701,0.19801283,26878.0,26877.0,0.44070085]
[1693498871928,0.19801283,26878.0,26877.0,0.43656085]
[1693498872140,0.19801283,26878.0,26877.0,0.36768085]
[1693498872751,0.19801283,26878.0,26877.0,0.45180085]
[1693498872974,0.19801283,26878.0,26877.0,0.45372085]
[1693498873182,0.19801283,26878.0,26877.0,0.46308085]
[1693498873183,0.23401283,26878.0,26877.0,0.46308085]
[1693498873388,0.24101283,26878.0,26877.0,0.46980085]
[1693498873595,0.05614839,26878.0,26877.0,0.46506085]
[1693498873831,0.05614839,26878.0,26877.0,0.37068085]
[1693498874032,0.24389046,26878.0,26877.0,0.37068085]
[1693498874244,0.04914839,26878.0,26877.0,0.36768085]
[1693498874450,0.22064934,26878.0,26877.0,0.36768085]
[1693498874655,0.08514839,26878.0,26877.0,0.37068085]
[1693498874870,0.04914839,26878.0,26877.0,0.36768085]
[1693498875072,0.18357803,26878.0,26877.0,0.36768085]
[1693498875279,0.21957803,26878.0,26877.0,0.37068085]
[1693498875488,0.09214839,26878.0,26877.0,0.37368085]
[1693498875898,0.08514839,26878.0,26877.0,0.37068085]
[1693498876107,0.25924618,26878.0,26877.0,0.45846085]
[1693498876310,0.26624618,26878.0,26877.0,0.46752085]
[1693498876520,0.42814839,26878.0,26877.0,0.09474]
[1693498876726,0.78408559,26878.0,26868.0,0.02]
[1693498876909,0.82008559,26878.0,26877.0,0.003]
[1693498877163,0.82008559,26878.0,26869.0,0.36768085]
[1693498877164,0.186,26874.0,26869.0,0.44658085]
[1693498877370,0.186,26874.0,26864.0,0.06366]
[1693498877371,0.1,26873.0,26864.0,0.06366]
[1693498877586,0.1,26873.0,26865.0,0.36768085]
[1693498877587,0.186,26872.0,26865.0,0.36768085]
[1693498877804,0.186,26869.0,26865.0,0.36768085]
[1693498878019,0.32,26868.0,26862.0,0.08034]
[1693498878249,0.3559372,26868.0,26863.0,0.36768085]
[1693498878709,0.3559372,26868.0,26856.0,0.09476]
[1693498878710,0.372,26866.0,26856.0,0.09476]
[1693498878929,0.372,26866.0,26857.0,0.45492085]
[1693498879133,0.372,26863.0,26857.0,0.45564085]
[1693498879357,0.186,26863.0,26857.0,0.45498085]
[1693498879569,0.372,26863.0,26858.0,0.06348]
[1693498879780,0.5625,26865.0,26858.0,0.36768085]
[1693498879781,0.372,26860.0,26858.0,0.36768085]
[1693498880412,0.186,26860.0,26858.0,0.36768085]
[1693498880849,0.335092,26860.0,26858.0,0.36768085]
[1693498881290,0.486,26859.0,26858.0,0.001]
[1693498881503,0.06,26855.0,26850.0,0.02]
[1693498881717,0.08,26856.0,26851.0,0.36768085]
[1693498881929,0.372,26853.0,26851.0,0.36768085]
[1693498882141,0.4805791,26852.0,26851.0,0.36768085]
[1693498882372,0.3,26857.0,26852.0,0.0921]
[1693498882588,0.3,26857.0,26851.0,0.50415658]
[1693498882589,0.159092,26860.0,26855.0,0.36768085]
[1693498882799,0.01,26860.0,26858.0,0.001]
[1693498883012,0.009,26860.0,26859.0,0.51475319]
[1693498883479,0.009,26860.0,26859.0,0.36768085]
[1693498883480,0.036,26860.0,26859.0,0.36768085]
[1693498883692,0.02976495,26861.0,26859.0,0.45768085]
[1693498883906,0.02976495,26861.0,26859.0,0.63193319]
[1693498883907,0.036,26860.0,26859.0,0.63193319]
[1693498884118,0.08507645,26860.0,26859.0,0.36768085]
[1693498884321,0.04907645,26860.0,26859.0,0.36768085]
[1693498884573,0.07107645,26860.0,26859.0,0.46702085]
[1693498884785,0.043,26860.0,26859.0,0.37168085]
[1693498884996,0.043,26860.0,26859.0,0.004]
[1693498886073,0.2322585,26860.0,26859.0,0.004]
[1693498886284,0.09209977,26860.0,26859.0,0.004]
[1693498886689,0.24427641,26860.0,26859.0,0.004]
[1693498886899,0.30739641,26860.0,26859.0,0.37168085]
[1693498887113,0.24427641,26860.0,26859.0,0.37168085]
[1693498887529,0.5544237,26860.0,26859.0,0.37168085]
[1693498887735,0.39209977,26860.0,26859.0,0.37168085]
[1693498887944,0.39209977,26860.0,26859.0,0.46612085]
[1693498887945,0.09209977,26860.0,26859.0,0.46612085]
[1693498888154,0.24626953,26860.0,26859.0,0.45772085]
[1693498888359,0.24626953,26860.0,26859.0,0.37168085]
[1693498889410,0.09209977,26860.0,26859.0,0.46708085]
[1693498889657,0.09209977,26860.0,26859.0,0.48982085]
[1693498889875,0.09209977,26860.0,26859.0,0.48952085]
[1693498890081,0.09209977,26860.0,26859.0,0.48928085]
[1693498890305,0.09209977,26860.0,26859.0,0.6506872]
[1693498890509,0.09209977,26860.0,26859.0,0.6629272]
[1693498890711,0.09209977,26860.0,26859.0,0.51088085]
[1693498890940,0.09209977,26860.0,26859.0,0.47812085]
[1693498890941,0.22437625,26860.0,26859.0,0.47812085]
[1693498891149,0.22437625,26860.0,26859.0,0.47380085]
[1693498891352,0.22437625,26860.0,26859.0,0.47038085]
[1693498891563,0.09209977,26860.0,26859.0,0.48412085]
[1693498891772,0.09209977,26860.0,26859.0,0.49000085]
[1693498891974,0.09209977,26860.0,26859.0,0.48844085]
[1693498892222,0.09209977,26860.0,26859.0,0.49222085]
[1693498892452,0.09209977,26860.0,26859.0,0.6559671]
[1693498892665,0.09209977,26860.0,26859.0,0.6386271]
[1693498892879,0.09209977,26860.0,26859.0,0.45454085]
[1693498893090,0.27127268,26860.0,26859.0,0.37168085]
[1693498893297,0.23412079,26860.0,26859.0,0.37168085]
[1693498893510,0.25606194,26860.0,26859.0,0.004]
[1693498893726,0.23204775,26860.0,26859.0,0.004]
[1693498893931,0.24078862,26860.0,26859.0,0.004]
[1693498894347,0.09209977,26860.0,26859.0,0.004]
[1693498894556,4.47482197,26860.0,26855.0,0.02]
[1693498894767,0.08,26857.0,26855.0,0.02]
[1693498894988,0.08,26857.0,26849.0,0.005]
[1693498894989,0.4466,26856.0,26849.0,0.005]
[1693498895193,0.3,26855.0,26849.0,0.005]
[1693498895402,0.372,26853.0,26849.0,0.005]
[1693498895624,0.32,26852.0,26849.0,0.005]
[1693498896511,0.469142,26852.0,26849.0,0.005]
[1693498896939,0.469142,26852.0,26849.0,0.006]
[1693498897170,0.449142,26852.0,26849.0,0.006]
[1693498897415,0.485142,26852.0,26849.0,0.006]
[1693498897854,0.14974144,26851.0,26849.0,0.007]
[1693498898058,0.14974144,26851.0,26849.0,0.08518]
[1693498898268,0.14974144,26851.0,26850.0,0.10808]
[1693498898480,0.072,26852.0,26851.0,0.005]
[1693498898694,0.072,26852.0,26851.0,0.2272]
[1693498898897,0.072,26852.0,26851.0,0.514]
[1693498899106,0.072,26852.0,26851.0,0.51664]
[1693498899316,0.072,26852.0,26851.0,0.5308]
[1693498899532,0.072,26852.0,26851.0,0.514]
[1693498899744,0.072,26852.0,26851.0,0.511]
[1693498899745,0.036,26852.0,26851.0,0.511]
[1693498899995,0.036,26852.0,26851.0,0.35098]
[1693498900214,0.036,26852.0,26851.0,0.48772]
[1693498900415,0.036,26852.0,26851.0,0.49756]
[1693498900621,0.12134199,26852.0,26851.0,0.87200085]
[1693498900828,0.036,26852.0,26851.0,0.85664085]
[1693498901035,0.2509,26857.0,26851.0,0.85336085]
[1693498901273,0.2509,26857.0,26854.0,0.005]
[1693498901513,0.2509,26857.0,26854.0,0.37268085]
[1693498901719,0.23892213,26857.0,26854.0,0.37268085]
[1693498901934,0.04933944,26856.0,26854.0,0.005]
[1693498902144,0.2149728,26856.0,26854.0,0.005]
[1693498902814,0.16383748,26855.0,26854.0,0.005]
[1693498903252,0.16383748,26855.0,26854.0,0.006]
[1693498903464,0.08533944,26856.0,26854.0,0.001]
[1693498903670,0.186,26855.0,26854.0,0.001]
[1693498903882,0.51249376,26855.0,26854.0,0.002]
[1693498904089,0.51249376,26855.0,26854.0,0.001]
[1693498904465,0.36249376,26855.0,26854.0,0.002]
[1693498904670,0.36249376,26855.0,26854.0,0.001]
[1693498904876,0.17649376,26855.0,26854.0,0.001]
[1693498905078,0.21249376,26855.0,26854.0,0.43538085]
[1693498905235,0.21249376,26855.0,26854.0,0.36968085]
[1693498905438,0.072,26855.0,26854.0,0.002]
[1693498905866,0.036,26855.0,26854.0,0.001]
[1693498906429,0.336,26855.0,26854.0,0.001]
[1693498906645,0.372,26855.0,26854.0,0.002]